[Event "TePe Sigeman & Co Chess Tournament 2024"]
[Site "Elite Plaza Hotel, Gustav Adolfs Torg 49, Malmo, Sweden"]
[Date "2024.04.28"]
[Round "2.1"]
[White "Maurizzi, Marc Andria"]
[Black "Korobov, Anton"]
[Result "0-1"]
[TimeControl "90 minutes for 40 moves + 30 minutes for the rest of the game + 30 seconds per move from move one."]
[WhiteTitle "GM"]
[BlackTitle "GM"]
[WhiteFideId "36083534"]
[BlackFideId "14105730"]
[WhiteElo "2605"]
[BlackElo "2651"]

1. d4 {[%clk 01:30:41]} {[%emt 00:00:18]} Nf6 {[%clk 01:30:50]} {[%emt
00:00:09]} 2. c4 {[%clk 01:31:09]} {[%emt 00:00:03]} e6 {[%clk 01:31:08]}
{[%emt 00:00:11]} 3. g3 {[%clk 01:31:05]} {[%emt 00:00:36]} d5 {[%clk
01:31:12]} {[%emt 00:00:24]} 4. Bg2 {[%clk 01:31:06]} {[%emt 00:00:29]} dxc4
{[%clk 01:31:23]} {[%emt 00:00:18]} 5. Nf3 {[%clk 01:30:03]} {[%emt 00:01:35]}
a6 {[%clk 01:31:23]} {[%emt 00:00:30]} 6. O-O {[%clk 01:28:22]} {[%emt
00:02:11]} Nc6 {[%clk 01:31:18]} {[%emt 00:00:33]} 7. a4 {[%clk 01:20:56]}
{[%emt 00:07:58]} Rb8 {[%clk 01:26:03]} {[%emt 00:05:44]} 8. a5 {[%clk
01:20:20]} {[%emt 00:01:07]} Bb4 {[%clk 01:16:58]} {[%emt 00:09:35]} 9. Na3
{[%clk 01:17:28]} {[%emt 00:03:21]} Bxa5 {[%clk 01:12:05]} {[%emt 00:05:23]} 10.
Nxc4 {[%clk 01:11:57]} {[%emt 00:06:02]} Bb4 {[%clk 01:12:14]} {[%emt
00:00:20]} 11. Nfe5 {[%clk 01:06:18]} {[%emt 00:06:09]} Nxe5 {[%clk 01:10:42]}
{[%emt 00:02:02]} 12. dxe5 {[%clk 01:06:04]} {[%emt 00:00:45]} Qxd1 {[%clk
01:10:21]} {[%emt 00:00:50]} 13. Rxd1 {[%clk 01:06:27]} {[%emt 00:00:08]} Nd5
{[%clk 01:09:08]} {[%emt 00:01:43]} 14. Ne3 {[%clk 00:56:57]} {[%emt 00:09:59]}
Nb6 {[%clk 01:04:08]} {[%emt 00:05:30]} 15. Bd2 {[%clk 00:47:56]} {[%emt
00:09:32]} Bxd2 {[%clk 01:03:40]} {[%emt 00:00:58]} 16. Rxd2 {[%clk 00:48:25]}
{[%emt 00:00:02]} Ke7 {[%clk 01:03:34]} {[%emt 00:00:35]} 17. Rc1 {[%clk
00:45:41]} {[%emt 00:03:15]} c6 {[%clk 01:03:22]} {[%emt 00:00:42]} 18. Rd3
{[%clk 00:44:51]} {[%emt 00:01:20]} Bd7 {[%clk 00:55:42]} {[%emt 00:08:10]} 19.
Rb3 {[%clk 00:37:07]} {[%emt 00:08:15]} Na4 {[%clk 00:51:30]} {[%emt 00:04:41]}
20. Ra3 {[%clk 00:26:09]} {[%emt 00:11:28]} b5 {[%clk 00:48:47]} {[%emt
00:03:13]} 21. Ra2 {[%clk 00:20:21]} {[%emt 00:06:19]} Ra8 {[%clk 00:44:51]}
{[%emt 00:04:25]} 22. Nc2 {[%clk 00:10:52]} {[%emt 00:09:59]} Ra7 {[%clk
00:43:01]} {[%emt 00:02:19]} 23. Ne1 {[%clk 00:10:32]} {[%emt 00:00:51]} Rc8
{[%clk 00:40:58]} {[%emt 00:02:32]} 24. b3 {[%clk 00:08:51]} {[%emt 00:02:11]}
Nb6 {[%clk 00:41:06]} {[%emt 00:00:22]} 25. Nd3 {[%clk 00:09:20]} {[%emt
00:00:01]} a5 {[%clk 00:40:05]} {[%emt 00:01:30]} 26. Be4 {[%clk 00:08:18]}
{[%emt 00:01:32]} a4 {[%clk 00:37:15]} {[%emt 00:03:20]} 27. f4 {[%clk
00:07:54]} {[%emt 00:00:54]} a3 {[%clk 00:28:28]} {[%emt 00:09:18]} 28. b4
{[%clk 00:07:37]} {[%emt 00:00:48]} Ra4 {[%clk 00:25:30]} {[%emt 00:03:27]} 29.
Kf2 {[%clk 00:04:36]} {[%emt 00:03:31]} Nc4 {[%clk 00:25:06]} {[%emt 00:00:54]}
30. Rb1 {[%clk 00:04:03]} {[%emt 00:01:03]} h6 {[%clk 00:23:10]} {[%emt
00:02:25]} 31. Nc5 {[%clk 00:04:08]} {[%emt 00:00:26]} Ra7 {[%clk 00:23:39]}
{[%emt 00:00:02]} 32. Rb3 {[%clk 00:02:22]} {[%emt 00:02:16]} Rca8 {[%clk
00:23:11]} {[%emt 00:00:57]} 33. Ke1 {[%clk 00:02:48]} {[%emt 00:00:04]} f6
{[%clk 00:22:59]} {[%emt 00:00:41]} 34. exf6+ {[%clk 00:03:16]} {[%emt
00:00:03]} gxf6 {[%clk 00:23:23]} {[%emt 00:00:06]} 35. Bd3 {[%clk 00:03:33]}
{[%emt 00:00:13]} Nb6 {[%clk 00:22:29]} {[%emt 00:01:24]} 36. Bc2 {[%clk
00:02:47]} {[%emt 00:01:14]} Be8 {[%clk 00:21:30]} {[%emt 00:01:29]} 37. Re3
{[%clk 00:02:59]} {[%emt 00:00:18]} Nd5 {[%clk 00:20:34]} {[%emt 00:01:26]} 38.
Rxe6+ {[%clk 00:03:12]} {[%emt 00:00:18]} Kf8 {[%clk 00:21:02]} {[%emt
00:00:01]} 39. Bb3 {[%clk 00:03:24]} {[%emt 00:00:18]} Nxb4 {[%clk 00:20:43]}
{[%emt 00:00:49]} 40. Ra1 {[%clk 00:03:49]} {[%emt 00:00:06]} Bf7 {[%clk
00:19:46]} {[%emt 00:01:27]} 41. Rxf6 {[%clk 00:00:53]} {[%emt 00:03:26]} Kg7
{[%clk 00:19:43]} {[%emt 00:00:33]} 42. Rxf7+ {[%clk 00:01:12]} {[%emt
00:00:11]} Rxf7 {[%clk 00:20:09]} {[%emt 00:00:03]} 43. Bxf7 {[%clk 00:01:37]}
{[%emt 00:00:06]} Nc2+ {[%clk 00:20:16]} {[%emt 00:00:23]} 44. Kd2 {[%clk
00:02:06]} Nxa1 {[%clk 00:20:39]} {[%emt 00:00:08]} 45. Ba2 {[%clk 00:02:34]}
{[%emt 00:00:02]} b4 {[%clk 00:20:55]} {[%emt 00:00:14]} 46. Kc1 {[%clk
00:03:04]} {[%emt 00:00:01]} b3 {[%clk 00:11:10]} {[%emt 00:10:14]} 47. Kb1
{[%clk 00:02:08]} {[%emt 00:01:25]} Nc2 {[%clk 00:09:16]} {[%emt 00:02:24]} 48.
Bxb3 {[%clk 00:01:44]} {[%emt 00:00:54]} Nb4 {[%clk 00:08:38]} {[%emt
00:01:08]} 49. e4 {[%clk 00:30:22]} {[%emt 00:01:51]} a2+ {[%clk 00:31:21]}
{[%emt 00:07:46]} 50. Ka1 {[%clk 00:30:51]} {[%emt 00:00:02]} Ra5 {[%clk
00:31:45]} {[%emt 00:00:06]} 51. Ne6+ {[%clk 00:27:45]} {[%emt 00:03:36]} Kh8
{[%clk 00:31:29]} {[%emt 00:00:46]} 52. f5 {[%clk 00:27:00]} {[%emt 00:01:15]}
Re5 {[%clk 00:30:22]} {[%emt 00:01:37]} 53. f6 {[%clk 00:24:11]} {[%emt
00:03:19]} Rxe4 {[%clk 00:28:27]} {[%emt 00:02:25]} 54. Bxa2 {[%clk 00:24:37]}
{[%emt 00:00:04]} Re1+ {[%clk 00:26:42]} {[%emt 00:02:15]} 55. Kb2 {[%clk
00:24:48]} {[%emt 00:00:19]} Kg8 {[%clk 00:24:11]} {[%emt 00:03:01]} 56. Bc4
{[%clk 00:16:23]} {[%emt 00:08:56]} Kf7 {[%clk 00:23:51]} {[%emt 00:00:49]} 57.
Kb3 {[%clk 00:13:45]} {[%emt 00:03:08]} Rb1+ {[%clk 00:23:29]} {[%emt
00:00:52]} 58. Kc3 {[%clk 00:12:53]} {[%emt 00:01:22]} Kxf6 {[%clk 00:23:52]}
{[%emt 00:00:06]} 59. Nf4 {[%clk 00:13:06]} {[%emt 00:00:18]} Ke5 {[%clk
00:23:16]} {[%emt 00:01:06]} 60. Ng6+ {[%clk 00:12:59]} {[%emt 00:00:37]} Ke4
{[%clk 00:22:22]} {[%emt 00:01:23]} 61. Ne7 {[%clk 00:13:28]} {[%emt 00:00:02]}
c5 {[%clk 00:21:16]} {[%emt 00:01:36]} 62. Bf7 {[%clk 00:13:50]} {[%emt
00:00:08]} Rc1+ {[%clk 00:21:12]} {[%emt 00:00:35]} 63. Kb3 {[%clk 00:13:10]}
{[%emt 00:01:10]} Nd3 {[%clk 00:21:10]} {[%emt 00:00:32]} 64. Bg6+ {[%clk
00:13:21]} {[%emt 00:00:19]} Ke3 {[%clk 00:21:09]} {[%emt 00:00:30]} 65. Nf5
{[%clk 00:13:44]} {[%emt 00:00:08]} Kd2 {[%clk 00:21:08]} {[%emt 00:00:31]} 66.
Nd6 {[%clk 00:14:11]} {[%emt 00:00:03]} Rb1+ {[%clk 00:18:49]} {[%emt
00:02:48]} 67. Ka2 {[%clk 00:14:38]} {[%emt 00:00:04]} Rb8 {[%clk 00:18:16]}
{[%emt 00:01:03]} 68. Ka3 {[%clk 00:15:08]} {[%emt 00:00:01]} Kc3 {[%clk
00:17:35]} {[%emt 00:01:10]} 69. Ka4 {[%clk 00:15:35]} {[%emt 00:00:04]} Nb2+
{[%clk 00:17:23]} {[%emt 00:00:41]} 0-1

[ePGN "0.1;DGT LiveChess/2.2.6"]

[Event "TePe Sigeman & Co Chess Tournament 2024"]
[Site "Elite Plaza Hotel, Gustav Adolfs Torg 49, Malmo, Sweden"]
[Date "2024.04.28"]
[Round "2.2"]
[White "Ju, Wenjun"]
[Black "Svidler, Peter"]
[Result "0-1"]
[TimeControl "90 minutes for 40 moves + 30 minutes for the rest of the game + 30 seconds per move from move one."]
[WhiteTitle "GM"]
[BlackTitle "GM"]
[WhiteFideId "8603006"]
[BlackFideId "4102142"]
[WhiteElo "2559"]
[BlackElo "2689"]

1. d4 {[%clk 01:30:57]} {[%emt 00:00:03]} d6 {[%clk 01:30:30]} {[%emt
00:00:30]} 2. g3 {[%clk 01:30:42]} {[%emt 00:00:44]} g6 {[%clk 01:28:50]}
{[%emt 00:02:10]} 3. Bg2 {[%clk 01:31:03]} {[%emt 00:00:08]} Bg7 {[%clk
01:29:17]} {[%emt 00:00:04]} 4. Nf3 {[%clk 01:29:19]} {[%emt 00:02:15]} Nd7
{[%clk 01:23:46]} {[%emt 00:06:01]} 5. O-O {[%clk 01:26:08]} {[%emt 00:03:41]}
e5 {[%clk 01:21:43]} {[%emt 00:02:32]} 6. dxe5 {[%clk 01:26:02]} {[%emt
00:00:37]} dxe5 {[%clk 01:21:54]} {[%emt 00:00:19]} 7. Nc3 {[%clk 01:26:15]}
{[%emt 00:00:17]} Ngf6 {[%clk 01:17:48]} {[%emt 00:04:37]} 8. Nd2 {[%clk
01:18:40]} {[%emt 00:08:06]} O-O {[%clk 01:17:10]} {[%emt 00:01:07]} 9. Nc4
{[%clk 01:19:06]} {[%emt 00:00:04]} Re8 {[%clk 01:14:59]} {[%emt 00:02:40]} 10.
a4 {[%clk 01:16:02]} {[%emt 00:03:35]} e4 {[%clk 01:05:33]} {[%emt 00:09:56]}
11. a5 {[%clk 00:42:45]} {[%emt 00:33:48]} Qe7 {[%clk 00:55:34]} {[%emt
00:10:28]} 12. Be3 {[%clk 00:40:27]} {[%emt 00:02:49]} Nc5 {[%clk 00:44:38]}
{[%emt 00:11:27]} 13. Qd4 {[%clk 00:28:09]} {[%emt 00:12:48]} Na6 {[%clk
00:42:25]} {[%emt 00:02:43]} 14. Qd1 {[%clk 00:19:11]} {[%emt 00:09:28]} Be6
{[%clk 00:41:24]} {[%emt 00:01:30]} 15. Nd2 {[%clk 00:16:46]} {[%emt 00:02:56]}
Ng4 {[%clk 00:41:24]} {[%emt 00:00:30]} 16. Ndxe4 {[%clk 00:16:55]} {[%emt
00:00:21]} Nxe3 {[%clk 00:41:39]} {[%emt 00:00:16]} 17. fxe3 {[%clk 00:17:23]}
{[%emt 00:00:02]} Rad8 {[%clk 00:37:05]} {[%emt 00:05:03]} 18. Qc1 {[%clk
00:17:49]} {[%emt 00:00:04]} c6 {[%clk 00:29:45]} {[%emt 00:07:50]} 19. Ra3
{[%clk 00:16:40]} {[%emt 00:01:39]} Bf5 {[%clk 00:27:36]} {[%emt 00:02:39]} 20.
h3 {[%clk 00:12:59]} {[%emt 00:04:11]} h5 {[%clk 00:24:00]} {[%emt 00:04:06]}
21. Kh1 {[%clk 00:11:01]} {[%emt 00:02:28]} Nc5 {[%clk 00:14:57]} {[%emt
00:09:33]} 22. Nxc5 {[%clk 00:10:37]} {[%emt 00:00:54]} Qxc5 {[%clk 00:15:26]}
{[%emt 00:00:01]} 23. e4 {[%clk 00:10:48]} {[%emt 00:00:19]} Be6 {[%clk
00:15:52]} {[%emt 00:00:04]} 24. Nd1 {[%clk 00:09:05]} {[%emt 00:02:13]} Qb5
{[%clk 00:15:25]} {[%emt 00:00:58]} 25. Nc3 {[%clk 00:07:06]} {[%emt 00:02:28]}
Qe5 {[%clk 00:14:29]} {[%emt 00:01:26]} 26. Qe3 {[%clk 00:06:48]} {[%emt
00:00:49]} Bf8 {[%clk 00:13:52]} {[%emt 00:01:07]} 27. Raa1 {[%clk 00:06:45]}
{[%emt 00:00:33]} Bd6 {[%clk 00:12:51]} {[%emt 00:01:31]} 28. Qf4 {[%clk
00:07:03]} {[%emt 00:00:12]} g5 {[%clk 00:11:15]} {[%emt 00:02:06]} 29. Qxe5
{[%clk 00:07:21]} {[%emt 00:00:12]} Bxe5 {[%clk 00:11:43]} {[%emt 00:00:01]} 30.
Rf3 {[%clk 00:07:38]} {[%emt 00:00:13]} g4 {[%clk 00:05:24]} {[%emt 00:06:49]}
31. hxg4 {[%clk 00:07:28]} {[%emt 00:00:40]} hxg4 {[%clk 00:05:53]} {[%emt
00:00:01]} 32. Rd3 {[%clk 00:07:17]} {[%emt 00:00:41]} Bc4 {[%clk 00:06:21]}
{[%emt 00:00:02]} 33. Rxd8 {[%clk 00:05:02]} {[%emt 00:02:45]} Rxd8 {[%clk
00:06:46]} {[%emt 00:00:05]} 34. Bf1 {[%clk 00:05:27]} {[%emt 00:00:04]} Rd2
{[%clk 00:05:39]} {[%emt 00:01:38]} 35. Rc1 {[%clk 00:03:48]} {[%emt 00:02:10]}
Bxg3 {[%clk 00:05:12]} {[%emt 00:00:57]} 36. Nb1 {[%clk 00:03:39]} {[%emt
00:00:40]} Rd8 {[%clk 00:04:48]} {[%emt 00:00:53]} 37. e3 {[%clk 00:04:06]}
{[%emt 00:00:03]} Be6 {[%clk 00:04:28]} {[%emt 00:00:50]} 38. Kg2 {[%clk
00:02:30]} {[%emt 00:02:05]} Be5 {[%clk 00:04:43]} {[%emt 00:00:15]} 39. c3
{[%clk 00:02:57]} {[%emt 00:00:03]} Kg7 {[%clk 00:04:51]} {[%emt 00:00:22]} 40.
Be2 {[%clk 00:02:52]} {[%emt 00:00:35]} Bc7 {[%clk 00:01:28]} {[%emt 00:03:54]}
41. a6 {[%clk 00:24:18]} {[%emt 00:09:04]} bxa6 {[%clk 00:20:28]} {[%emt
00:11:30]} 42. Bxa6 {[%clk 00:23:24]} {[%emt 00:01:23]} Rh8 {[%clk 00:20:32]}
{[%emt 00:00:26]} 43. Rh1 {[%clk 00:23:41]} {[%emt 00:00:13]} Rb8 {[%clk
00:20:57]} {[%emt 00:00:05]} 44. b4 {[%clk 00:23:30]} {[%emt 00:00:41]} c5
{[%clk 00:21:22]} {[%emt 00:00:05]} 45. b5 {[%clk 00:21:35]} {[%emt 00:02:25]}
Kg6 {[%clk 00:18:17]} {[%emt 00:03:35]} 46. Kf2 {[%clk 00:16:41]} {[%emt
00:05:24]} Be5 {[%clk 00:17:13]} {[%emt 00:01:34]} 47. Ke2 {[%clk 00:06:44]}
{[%emt 00:10:27]} Bc4+ {[%clk 00:15:59]} {[%emt 00:01:44]} 48. Kd1 {[%clk
00:06:38]} {[%emt 00:00:35]} Bd3 {[%clk 00:13:32]} {[%emt 00:02:58]} 49. Nd2
{[%clk 00:07:03]} {[%emt 00:00:05]} Bxc3 {[%clk 00:13:28]} {[%emt 00:00:35]} 50.
Rg1 {[%clk 00:07:28]} {[%emt 00:00:04]} Kh5 {[%clk 00:13:45]} {[%emt 00:00:13]}
0-1

[ePGN "0.1;DGT LiveChess/2.2.6"]

[Event "TePe Sigeman & Co Chess Tournament 2024"]
[Site "Elite Plaza Hotel, Gustav Adolfs Torg 49, Malmo, Sweden"]
[Date "2024.04.28"]
[Round "2.3"]
[White "Abdusattorov, Nodirbek"]
[Black "Erigaisi, Arjun"]
[Result "1/2-1/2"]
[TimeControl "90 minutes for 40 moves + 30 minutes for the rest of the game + 30 seconds per move from move one."]
[WhiteTitle "GM"]
[BlackTitle "GM"]
[WhiteFideId "14204118"]
[BlackFideId "35009192"]
[WhiteElo "2765"]
[BlackElo "2756"]

1. c4 {[%clk 01:30:57]} {[%emt 19:47:16]} c6 {[%clk 01:30:48]} {[%emt
00:00:34]} 2. Nf3 {[%clk 01:31:06]} {[%emt 00:00:21]} d5 {[%clk 01:31:11]}
{[%emt 00:00:07]} 3. d4 {[%clk 01:31:21]} {[%emt 00:00:15]} Nf6 {[%clk
01:31:34]} {[%emt 00:00:06]} 4. e3 {[%clk 01:31:37]} {[%emt 00:00:15]} Bf5
{[%clk 01:31:57]} {[%emt 00:00:07]} 5. Nc3 {[%clk 01:29:47]} {[%emt 00:02:20]}
e6 {[%clk 01:32:18]} {[%emt 00:00:09]} 6. Nh4 {[%clk 01:29:52]} {[%emt
00:00:25]} Bg6 {[%clk 01:31:54]} {[%emt 00:00:54]} 7. Bd2 {[%clk 01:26:40]}
{[%emt 00:03:42]} Nbd7 {[%clk 01:26:41]} {[%emt 00:05:42]} 8. cxd5 {[%clk
01:26:56]} {[%emt 00:00:14]} exd5 {[%clk 01:27:05]} {[%emt 00:00:06]} 9. Nxg6
{[%clk 01:27:22]} {[%emt 00:00:04]} hxg6 {[%clk 01:27:29]} {[%emt 00:00:06]} 10.
h4 {[%clk 01:27:04]} {[%emt 00:00:48]} Bb4 {[%clk 01:20:21]} {[%emt 00:07:38]}
11. Bd3 {[%clk 01:21:38]} {[%emt 00:05:56]} Qe7 {[%clk 00:40:58]} {[%emt
00:39:53]} 12. a3 {[%clk 01:12:13]} {[%emt 00:09:55]} Bxc3 {[%clk 00:40:29]}
{[%emt 00:00:59]} 13. Bxc3 {[%clk 01:12:35]} {[%emt 00:00:07]} Ne4 {[%clk
00:40:54]} {[%emt 00:00:05]} 14. Bb4 {[%clk 01:11:35]} {[%emt 00:01:31]} Qe6
{[%clk 00:35:50]} {[%emt 00:05:34]} 15. a4 {[%clk 01:07:46]} {[%emt 00:04:19]}
g5 {[%clk 00:34:57]} {[%emt 00:01:23]} 16. h5 {[%clk 01:00:18]} {[%emt
00:07:57]} g4 {[%clk 00:35:02]} {[%emt 00:00:25]} 17. Qc2 {[%clk 00:50:05]}
{[%emt 00:10:43]} g3 {[%clk 00:34:00]} {[%emt 00:01:31]} 18. Bxe4 {[%clk
00:50:33]} {[%emt 00:00:02]} gxf2+ {[%clk 00:34:24]} {[%emt 00:00:06]} 19. Qxf2
{[%clk 00:50:54]} {[%emt 00:00:09]} dxe4 {[%clk 00:29:53]} {[%emt 00:05:02]} 20.
O-O-O {[%clk 00:50:33]} {[%emt 00:00:51]} Nb6 {[%clk 00:27:53]} {[%emt
00:02:29]} 21. Rdf1 {[%clk 00:47:42]} {[%emt 00:03:20]} Nd5 {[%clk 00:26:16]}
{[%emt 00:02:08]} 22. Bd2 {[%clk 00:39:22]} {[%emt 00:08:50]} f6 {[%clk
00:25:39]} {[%emt 00:01:07]} 23. a5 {[%clk 00:38:29]} {[%emt 00:01:23]} O-O-O
{[%clk 00:24:18]} {[%emt 00:01:51]} 24. a6 {[%clk 00:38:24]} {[%emt 00:00:36]}
bxa6 {[%clk 00:23:34]} {[%emt 00:01:14]} 25. Kb1 {[%clk 00:35:29]} {[%emt
00:03:24]} Nb6 {[%clk 00:21:53]} {[%emt 00:02:11]} 26. h6 {[%clk 00:34:15]}
{[%emt 00:01:45]} Rd7 {[%clk 00:13:09]} {[%emt 00:09:14]} 27. Ba5 {[%clk
00:27:56]} {[%emt 00:06:49]} Kb7 {[%clk 00:12:10]} {[%emt 00:01:29]} 28. hxg7
{[%clk 00:23:37]} {[%emt 00:04:49]} Rxh1 {[%clk 00:12:34]} {[%emt 00:00:06]} 29.
Rxh1 {[%clk 00:23:58]} {[%emt 00:00:09]} Rxg7 {[%clk 00:13:00]} {[%emt
00:00:04]} 30. Rh8 {[%clk 00:22:12]} {[%emt 00:02:15]} Qb3 {[%clk 00:11:49]}
{[%emt 00:01:41]} 31. Qf4 {[%clk 00:21:35]} {[%emt 00:01:07]} Qd1+ {[%clk
00:12:03]} {[%emt 00:00:16]} 32. Ka2 {[%clk 00:22:00]} {[%emt 00:00:05]} Qa4+
{[%clk 00:12:29]} {[%emt 00:00:04]} 33. Kb1 {[%clk 00:22:26]} {[%emt 00:00:04]}
Qd1+ {[%clk 00:12:53]} {[%emt 00:00:05]} 34. Ka2 {[%clk 00:22:53]} {[%emt
00:00:03]} Qa4+ {[%clk 00:13:17]} {[%emt 00:00:05]} 35. Kb1 {[%clk 00:23:21]}
{[%emt 00:00:03]} Qd1+ {[%clk 00:13:41]} {[%emt 00:00:06]} 1/2-1/2

[ePGN "0.1;DGT LiveChess/2.2.6"]

[Event "TePe Sigeman & Co Chess Tournament 2024"]
[Site "Elite Plaza Hotel, Gustav Adolfs Torg 49, Malmo, Sweden"]
[Date "2024.04.28"]
[Round "2.4"]
[White "Keymer, Vincent"]
[Black "Grandelius, Nils"]
[Result "1-0"]
[TimeControl "90 minutes for 40 moves + 30 minutes for the rest of the game + 30 seconds per move from move one."]
[WhiteTitle "GM"]
[BlackTitle "GM"]
[WhiteFideId "12940690"]
[BlackFideId "1710400"]
[WhiteElo "2726"]
[BlackElo "2664"]

1. d4 {[%clk 01:30:56]} {[%emt 00:00:03]} d5 {[%clk 01:30:24]} {[%emt
00:00:35]} 2. c4 {[%clk 01:31:22]} {[%emt 00:00:05]} c6 {[%clk 01:30:20]}
{[%emt 00:00:34]} 3. Nf3 {[%clk 01:31:48]} {[%emt 00:00:04]} Nf6 {[%clk
01:30:43]} {[%emt 00:00:06]} 4. Nc3 {[%clk 01:32:15]} {[%emt 00:00:04]} e6
{[%clk 01:30:08]} {[%emt 00:01:04]} 5. e3 {[%clk 01:32:41]} {[%emt 00:00:05]}
a6 {[%clk 01:29:59]} {[%emt 00:00:39]} 6. h3 {[%clk 01:33:07]} {[%emt
00:00:04]} Nbd7 {[%clk 01:28:44]} {[%emt 00:01:44]} 7. Qc2 {[%clk 01:33:18]}
{[%emt 00:00:21]} b6 {[%clk 01:27:56]} {[%emt 00:01:17]} 8. b3 {[%clk
01:33:37]} {[%emt 00:00:11]} Bb7 {[%clk 01:27:34]} {[%emt 00:00:51]} 9. Bb2
{[%clk 01:34:03]} {[%emt 00:00:05]} dxc4 {[%clk 01:27:58]} {[%emt 00:00:06]} 10.
bxc4 {[%clk 01:34:18]} {[%emt 00:00:16]} Bb4 {[%clk 01:28:15]} {[%emt
00:00:13]} 11. a3 {[%clk 01:32:24]} {[%emt 00:02:25]} Ba5 {[%clk 01:27:08]}
{[%emt 00:01:37]} 12. e4 {[%clk 01:32:49]} {[%emt 00:00:05]} c5 {[%clk
01:23:47]} {[%emt 00:03:50]} 13. d5 {[%clk 01:33:09]} {[%emt 00:00:10]} exd5
{[%clk 01:24:12]} {[%emt 00:00:05]} 14. exd5 {[%clk 01:33:35]} {[%emt
00:00:04]} O-O {[%clk 01:23:51]} {[%emt 00:00:50]} 15. Be2 {[%clk 01:34:02]}
{[%emt 00:00:04]} b5 {[%clk 01:24:13]} {[%emt 00:00:08]} 16. O-O {[%clk
01:34:26]} {[%emt 00:00:06]} bxc4 {[%clk 01:24:20]} {[%emt 00:00:23]} 17. Bxc4
{[%clk 01:33:54]} {[%emt 00:01:02]} Nb6 {[%clk 01:22:51]} {[%emt 00:01:59]} 18.
Ba2 {[%clk 01:34:00]} {[%emt 00:00:25]} c4 {[%clk 01:21:49]} {[%emt 00:01:32]}
19. Rad1 {[%clk 01:34:10]} {[%emt 00:00:20]} Re8 {[%clk 01:21:58]} {[%emt
00:00:21]} 20. Rd4 {[%clk 01:08:54]} {[%emt 00:25:47]} h6 {[%clk 00:45:48]}
{[%emt 00:36:39]} 21. Rfd1 {[%clk 00:59:50]} {[%emt 00:09:34]} Rc8 {[%clk
00:24:59]} {[%emt 00:21:19]} 22. Bb1 {[%clk 00:56:53]} {[%emt 00:03:28]} Qe7
{[%clk 00:25:08]} {[%emt 00:00:20]} 23. d6 {[%clk 00:53:36]} {[%emt 00:03:47]}
Qd7 {[%clk 00:21:49]} {[%emt 00:03:48]} 24. Rf4 {[%clk 00:43:11]} {[%emt
00:10:55]} Bxc3 {[%clk 00:19:02]} {[%emt 00:03:17]} 25. Bxc3 {[%clk 00:41:03]}
{[%emt 00:02:38]} Be4 {[%clk 00:16:19]} {[%emt 00:03:13]} 26. Qc1 {[%clk
00:31:21]} {[%emt 00:10:12]} Nbd5 {[%clk 00:02:43]} {[%emt 00:14:05]} 27. Rxd5
{[%clk 00:25:48]} {[%emt 00:06:02]} Nxd5 {[%clk 00:02:25]} {[%emt 00:00:48]} 28.
Bxe4 {[%clk 00:26:13]} {[%emt 00:00:05]} Nxc3 {[%clk 00:01:19]} {[%emt
00:01:36]} 29. Qxc3 {[%clk 00:26:40]} {[%emt 00:00:03]} Qxd6 {[%clk 00:01:32]}
{[%emt 00:00:17]} 30. g3 {[%clk 00:26:07]} {[%emt 00:01:03]} Qd1+ {[%clk
00:01:19]} {[%emt 00:00:43]} 31. Kg2 {[%clk 00:25:03]} {[%emt 00:01:34]} Qb3
{[%clk 00:00:41]} {[%emt 00:01:07]} 32. Qd4 {[%clk 00:24:12]} {[%emt 00:01:22]}
Qxa3 {[%clk 00:00:35]} {[%emt 00:00:36]} 33. Bd5 {[%clk 00:23:31]} {[%emt
00:01:10]} Rc7 {[%clk 00:00:55]} {[%emt 00:00:10]} 34. Ne5 {[%clk 00:23:17]}
{[%emt 00:00:44]} Rf8 {[%clk 00:00:41]} {[%emt 00:00:44]} 35. Bxc4 {[%clk
00:19:42]} {[%emt 00:04:06]} Qc5 {[%clk 00:00:34]} {[%emt 00:00:36]} 36. Qxc5
{[%clk 00:18:48]} {[%emt 00:01:24]} Rxc5 {[%clk 00:00:59]} {[%emt 00:00:05]} 37.
Nd7 {[%clk 00:19:17]} {[%emt 00:00:02]} 1-0